Cogmind - Beta 11 @@@ ROGUE MODE // 2022.04.07 @ 02:33:14 Player: Red Box Result: Self-destructed Performance ------------- Evolutions (2) 1000 Regions Visited (7) 1400 Robots Destroyed (76) 380 Value Destroyed (3230) 3230 Prototype IDs (30) 600 Alien Tech Used (0) 0 Bonus (1281) 1281 TOTAL SCORE: 7891 Bonus ------- High Alert Combat Kills 215 Follower Combat Kills 66 Entered Garrisons 200 Used RIF Installer 500 Aligned with FarCom 300 Cogmind --------- Core Integrity 6/550 Matter 300/300 Energy 249/265 System Corruption 14% Temperature Cool (0) Movement Rolling (135) Ox3 Location -8/Materials Parts ------- > --- POWER (1) -------- Improved Ion Engine > --- PROPULSION (2) --- Wheel Compact Wheel > --- UTILITY (6) ------ Improved Heat Sink Huge Storage Unit Particle Charger Layered Light Armor Plating Relay Coupler [Grunt] (6) Relay Coupler [Specialist] (21) > --- WEAPON (2) ------- Advanced Beam Rifle Advanced Beam Rifle > --- INVENTORY (25) --- Huge Storage Unit Large Battery (200) Improved Utility Shielding Layered Light Armor Plating Layered Light Armor Plating Layered Light Armor Plating Hardlight Generator Hardlight Generator Relay Coupler [NC] (31) Relay Coupler [Sentry] (23) Relay Coupler [Sentry] (22) Relay Coupler [Sentry] (23) Relay Coupler [Hunter] (13) Relay Coupler [Heavy] (12) Trap Extractor (1/4 Proton Bomb) Trap Reconfigurator Advanced Beam Rifle Advanced Beam Rifle Advanced Beam Rifle Plasma Cannon Advanced EMP Blaster Improved Grenade Launcher Remote Datajack Chainsword Peak State ------------ > --- POWER ------------ Improved Ion Engine > --- PROPULSION ------- Wheel Wheel > --- UTILITY ---------- Improved Heat Sink Huge Storage Unit Improved Targeting Computer Layered Light Armor Plating Hardlight Generator Trap Reconfigurator > --- WEAPON ----------- Advanced Beam Rifle Axe > --- INVENTORY -------- Improved Ion Engine Compact Wheel Cryofiber Web Huge Storage Unit Large Battery Particle Charger Improved Utility Shielding Layered Light Armor Plating Layered Light Armor Plating Layered Light Armor Plating Hardlight Generator Relay Coupler [Sentry] Relay Coupler [Hunter] Relay Coupler [Heavy] Trap Extractor Advanced Beam Rifle Advanced Beam Rifle Advanced Beam Rifle Advanced Beam Rifle Proton Missile Launcher Proton Missile Launcher Proton Missile Launcher Proton Missile Launcher Improved Grenade Launcher Remote Datajack [Rating: 41] Favorites ----------- Power Improved Ion Engine Engine Improved Ion Engine Power Core Nuclear Core Propulsion Wheel Leg Aluminum Leg Wheel Wheel Utility Improved Heat Sink Device Improved Heat Sink Storage High-capacity Storage Unit Processor Improved Targeting Computer Hackware Hacking Suite Protection Layered Light Armor Plating Weapon Advanced Beam Rifle Energy Gun Advanced Beam Rifle Energy Cannon Ion Cannon Ballistic Gun Heavy Assault Rifle Ballistic Cannon Light Cannon Special Weapon Mining Laser Impact Weapon Hammer Slashing Weapon Axe Build | -11 -10 -10 -10 -9 -8 -8 -8 ------- Run | Scr Mat Min Exi Min Mat Gar Mat Slots Evolved 4 | . . . . . 4 . . Power . | . . . . . . . . Propulsion . | . . . . . . . . Utility 4 | . . . . . 4 . . Weapon . | . . . . . . . . Parts Attached 101 | 7 12 8 1 . 49 19 5 Power 8 | 1 1 . 1 . 3 2 . Engine 7 | 1 1 . 1 . 2 2 . Core 1 | . . . . . 1 . . Reactor . | . . . . . . . . Propulsion 14 | 2 2 3 . . 5 1 1 Treads . | . . . . . . . . Leg 3 | 2 . . . . 1 . . Wheel 11 | . 2 3 . . 4 1 1 Hover . | . . . . . . . . Flight . | . . . . . . . . Utility 45 | 2 5 2 . . 27 7 2 Device 25 | 1 1 1 . . 15 6 1 Storage 7 | 1 4 . . . 2 . . Processor 3 | . . . . . 3 . . Hackware 4 | . . . . . 2 1 1 Protection 6 | . . 1 . . 5 . . Artifact . | . . . . . . . . Weapon 34 | 2 4 3 . . 14 9 2 Energy Gun 19 | 2 2 . . . 9 5 1 Energy Cannon 3 | . . . . . 3 . . Ballistic Gun 3 | . 1 2 . . . . . Ballistic Cannon 1 | . . 1 . . . . . Launcher . | . . . . . . . . Special Weapon 2 | . 1 . . . . . 1 Impact Weapon 2 | . . . . . 2 . . Slashing Weapon 4 | . . . . . . 4 . Piercing Weapon . | . . . . . . . . Special Melee Weapon . | . . . . . . . . Unidentified Prototypes 1 | . . . . . 1 . . Parts Lost 21 | . 1 5 . . 14 1 . Power 1 | . . . . . 1 . . Propulsion 7 | . . 3 . . 3 1 . Utility 10 | . . 1 . . 9 . . Weapon 3 | . 1 1 . . 1 . . Highest Loss Streak 5 | . 1 4 . . 5 1 . To Critical Strikes . | . . . . . . . . Average Slot Usage (%) 98 | . 99 94 100 100 96 99 99 Engine 9 | . 14 14 14 14 5 9 9 Core 1 | . . . . . 3 . . Leg 1 | . 8 . . . . . . Wheel 19 | . 19 23 28 28 17 17 17 Device 16 | . 14 12 . . 17 25 18 Storage 10 | . 14 14 14 14 9 9 9 Processor 5 | . . . . . 8 9 7 Hackware 3 | . . . . . 7 1 10 Protection 7 | . . 1 14 14 10 9 9 Energy Gun 11 | . 21 2 . . 9 14 17 Energy Cannon 2 | . . . . . 6 . . Ballistic Gun 4 | . 4 15 28 28 . . . Ballistic Cannon 1 | . . 10 . . . . . Naked Turns . | . . . . . . . . Heaviest Build 110 | 15 90 60 60 60 110 105 101 Greatest Support 26 | 20 20 26 26 26 26 26 26 Greatest Overweight (x) 10 | 2 4 5 2 2 5 10 3 Average Overweight (x) 2 | . 1 2 2 2 2 3 3 Largest Inventory Capacity 25 | 8 25 20 20 20 25 25 25 Average Capacity 21 | 6 14 20 20 20 21 25 25 Most Carried 25 | 8 20 20 20 20 25 25 25 Average Carried 20 | 5 14 17 19 19 20 24 24 Final Capacity 25 | 8 20 20 20 20 25 25 25 Final Carried 25 | 8 20 20 20 20 25 25 24 Class Distribution -------------------- 66% | Mutant 12% | Bothacker-Mutant 11% | Scavenger-Mutant 9% | Hacker-Mutant Dominant Class ---------------- Mutant | -10/Materials Mutant | -10/Mines Mutant | -10/Exiles Mutant | -9/Mines Mutant | -8/Materials Mutant | -8/Garrison Bothacker-Mutant | -8/Materials Resources | -11 -10 -10 -10 -9 -8 -8 -8 ----------- Run | Scr Mat Min Exi Min Mat Gar Mat Matter Collected 1557 | 270 104 198 . 10 527 350 98 Remotely . | . . . . . . . . Salvage Created 2988 | 32 461 229 . . 1448 642 176 Parts 143 | 4 18 15 . . 72 27 7 Haulers Intercepted 5 | . 1 . . . 3 . 1 Recyclers Shooed 2 | . . . . . 2 . . Parts Field Recycled . | . . . . . . . . Retrieved Matter . | . . . . . . . . Parts Self-Destructed . | . . . . . . . . Prevented . | . . . . . . . . Kills | -11 -10 -10 -10 -9 -8 -8 -8 ------- Run | Scr Mat Min Exi Min Mat Gar Mat Combat Hostiles Destroyed 58 | . 9 8 . . 22 17 2 Melee 2 | . . . . . . 2 . Guns 36 | . 8 4 . . 8 14 2 Cannons 13 | . . 4 . . 9 . . Classes Destroyed 11 | 1 4 1 . . 5 . . Worker 1 | . . . . . 1 . . Builder 1 | . . . . . 1 . . Tunneler 2 | 2 . . . . . . . Hauler 5 | . 1 . . . 3 . 1 Watcher 9 | . 3 . . . 5 . 1 Swarmer 12 | . 2 3 . . . 7 . Grunt 34 | . 7 4 . . 12 9 2 Brawler 1 | . . . . . 1 . . Duelist 2 | . . . . . 2 . . Sentry 7 | . . 1 . . 6 . . Hunter 2 | . . . . . 1 1 . Best Kill Streak 5 | 1 3 3 . . 3 5 3 Combat Bots Only 5 | . 3 3 . . 3 5 1 Max Kills in Single Turn 1 | 1 1 1 . . 1 1 1 Gunslinging . | . . . . . . . . Exploded . | . . . . . . . . Melee 1 | . . . . . . 1 . Uniques/NPCs Destroyed . | . . . . . . . . Combat | -11 -10 -10 -10 -9 -8 -8 -8 -------- Run | Scr Mat Min Exi Min Mat Gar Mat Damage Taken 3471 | . 470 441 . . 1940 512 108 Core 791 | . 121 126 . . 401 128 15 Absorbed by Shields 296 | . . . . . 164 132 . Redirected to Shielding 113 | . . . . . 113 . . Regen/Repaired (Parts) 83 | . 58 . . . 25 . . Core Remaining (%) 50 | 100 . . . 1 . . . Volleys Fired 245 | 3 56 20 . . 86 58 22 Largest 2 | 2 2 2 . . 2 2 2 Hottest 150 | 100 150 70 . . 120 122 122 Shots Fired 470 | 6 109 40 . . 170 105 40 Gun 387 | 6 103 28 . . 108 105 37 Cannon 74 | . . 12 . . 62 . . Launcher . | . . . . . . . . Special 9 | . 6 . . . . . 3 Kinetic 40 | . 8 32 . . . . . Thermal 427 | 6 101 8 . . 170 105 37 Explosive . | . . . . . . . . Electromagnetic . | . . . . . . . . Robot Hit Streak 32 | 5 14 12 . . 32 10 5 Robot Miss Streak 5 | . 5 4 . . 2 1 3 Penetration Max . | . . . . . . . . Secondary Targets 2 | . . 2 . . . . . Max Gunslinging Chain 1 | . . 1 . . . . . Shots Hit Robots 312 | 5 58 28 . . 144 54 23 Core Hits 118 | 2 21 13 . . 51 25 6 Critical Kills . | . . . . . . . . Critical Parts Destroyed 3 | . . 1 . . 2 . . Critical Strikes 26 | 1 8 2 . . 6 4 5 Burn 22 | 1 8 . . . 4 4 5 Destroy 1 | . . 1 . . . . . Blast 1 | . . 1 . . . . . Smash 2 | . . . . . 2 . . Melee Attacks 85 | . . . . . 33 52 . Impact 33 | . . . . . 33 . . Slashing 52 | . . . . . . 52 . Piercing . | . . . . . . . . Sneak Attacks . | . . . . . . . . Combat Hostiles . | . . . . . . . . Follow-up Attacks . | . . . . . . . . Damage Inflicted 5864 | 62 751 396 . . 2765 1372 518 Guns 4138 | 62 727 221 . . 1350 1260 518 Cannons 1428 | . . 175 . . 1253 . . Explosions . | . . . . . . . . Melee 274 | . . . . . 162 112 . Ramming . | . . . . . . . . Kinetic 393 | . 60 333 . . . . . Thermal 5197 | 62 691 63 . . 2603 1260 518 Explosive . | . . . . . . . . Electromagnetic . | . . . . . . . . Impact 162 | . . . . . 162 . . Slashing 112 | . . . . . . 112 . Piercing . | . . . . . . . . Highest Corruption 14 | . . . . . 14 14 14 Average Corruption 13 | . . . . . 13 14 14 Corruption Purged . | . . . . . . . . Corruption Blocked . | . . . . . . . . Effects 182 | . . . . . 70 85 27 Message Errors 51 | . . . . . 21 21 9 Matter Fused 37 | . . . . . 13 21 3 Heat Flow Errors 23 | . . . . . 10 10 3 Energy Discharges 23 | . . . . . 12 6 5 Parts Rejected 1 | . . . . . . . 1 Data Loss (minor) 19 | . . . . . 5 12 2 Data Loss (major) 7 | . . . . . 1 5 1 Misfires 5 | . . . . . 2 2 1 Alerts 7 | . . . . . 1 6 . Misdirections 2 | . . . . . 2 . . Weapon Failures 7 | . . . . . 3 2 2 Overload Shots . | . . . . . . . . Overflow Damage 48 | . . . . . 48 . . Projectiles 1 | . . . . . 1 . . Explosions . | . . . . . . . . Melee 47 | . . . . . 47 . . Knockbacks 4 | . . 3 . . 1 . . Impact 1 | . . . . . 1 . . Kinetic 3 | . . 3 . . . . . Secondary . | . . . . . . . . Self-Inflicted Damage . | . . . . . . . . Shots . | . . . . . . . . Rammed . | . . . . . . . . Targets Rammed . | . . . . . . . . Kicked . | . . . . . . . . Crushed . | . . . . . . . . Highest Temperature 432 | 78 144 12 . . 190 432 252 Average Temperature 54 | 33 34 7 . . 32 88 52 Received Heat Transfer 1285 | . 225 231 . . 602 182 45 Effects 2 | . . . . . . 2 . Energy Bleed 1 | . . . . . . 1 . Short Circuit 1 | . . . . . . 1 . Siege Activations . | . . . . . . . . Robots Corrupted . | . . . . . . . . Combat Hostiles . | . . . . . . . . Parts Fried 2 | . . . . . 2 . . Impact Corruptions 3 | . . . . . 3 . . Robots Melted 4 | . 1 . . . 2 1 . Combat Hostiles 4 | . 1 . . . 2 1 . Parts Melted 24 | . 6 2 . . 14 2 . Heat Transferred 11853 | 259 2603 185 . . 5439 2183 1184 Parts Sabotaged . | . . . . . . . . Parts Stolen . | . . . . . . . . Parts Stripped . | . . . . . . . . Power Chain Reactions . | . . . . . . . . Missiles Intercepted . | . . . . . . . . Alert | -11 -10 -10 -10 -9 -8 -8 -8 ------- Run | Scr Mat Min Exi Min Mat Gar Mat Peak Influence 1078 | 10 253 146 . . 274 1078 579 Initial 525 | . 6 11 . . . 149 525 Average 262 | 3 82 54 . . 116 678 512 Maximum Alert Level 3 | . 1 . . . 1 3 2 Low Security (%) 58 | 100 81 100 . 100 73 12 . Level 1 15 | . 18 . . . 26 5 13 Level 2 14 | . . . . . . 34 86 Level 3 11 | . . . . . . 48 . Level 4 . | . . . . . . . . Level 5 . | . . . . . . . . High Security . | . . . . . . . . Max Security . | . . . . . . . . Squads Dispatched 6 | . 2 . . . 3 . 1 Investigation 1 | . 1 . . . . . . Extermination . | . . . . . . . . Reinforcement 5 | . 1 . . . 3 . 1 Assault . | . . . . . . . . Garrison . | . . . . . . . . Intercept . | . . . . . . . . Searches Triggered . | . . . . . . . . Construction Impeded . | . . . . . . . . Haulers Reinforced . | . . . . . . . . Active Scanning Responses . | . . . . . . . . Cargo Convoy Interrupts . | . . . . . . . . Stealth | -11 -10 -10 -10 -9 -8 -8 -8 --------- Run | Scr Mat Min Exi Min Mat Gar Mat Distress Signals 4 | . 2 . . . 2 . . Communications Jammed . | . . . . . . . . Distress Signals . | . . . . . . . . Times Spotted 92 | . 22 9 . . 35 18 8 Peak Tracking Total 7 | . 7 3 . . 3 3 2 Tactical Retreats 5 | . 2 1 . . 1 1 . Traps | -11 -10 -10 -10 -9 -8 -8 -8 ------- Run | Scr Mat Min Exi Min Mat Gar Mat Traps Triggered 11 | . 1 . . . . 10 . Indirectly . | . . . . . . . . Trap Hack Attempts . | . . . . . . . . Triggered . | . . . . . . . . Disarmed . | . . . . . . . . Reprogrammed . | . . . . . . . . Reused 1 | . . . . . . 1 . Traps Reconfigurated 19 | . . . . . 11 8 . Traps Extracted 1 | . . . . . 1 . . Installed . | . . . . . . . . Triggered 1 | . . . . . . 1 . Most Traps Carried 1 | . . . . . 1 1 1 Machines | -11 -10 -10 -10 -9 -8 -8 -8 ---------- Run | Scr Mat Min Exi Min Mat Gar Mat Machines Disabled 7 | . . . . . 2 5 . Max in Single Turn 1 | . . . . . 1 1 . Garrison Relay 4 | . . . . . . 4 . Machines Sabotaged . | . . . . . . . . Garrisons Compromised . | . . . . . . . . Overloaded Fab Kills . | . . . . . . . . Hacking | -11 -10 -10 -10 -9 -8 -8 -8 --------- Run | Scr Mat Min Exi Min Mat Gar Mat Machines Accessed 23 | . 7 . 2 . 12 . 2 Terminals 15 | . 6 . . . 8 . 1 Fabricators . | . . . . . . . . Repair Stations 2 | . 1 . . . 1 . . Recycling Units 1 | . . . . . 1 . . Scanalyzers 2 | . . . . . 1 . 1 Garrison Access 1 | . . . . . 1 . . Total Hacks 97 | . 24 . 3 . 58 . 12 Successful 55 | . 12 . 3 . 33 . 7 Failed 41 | . 12 . . . 24 . 5 Catastrophic 4 | . . . . . 3 . 1 Database Lockouts 1 | . . . . . 1 . . Manual 60 | . 13 . 1 . 44 . 2 Terminals 68 | . 22 . . . 43 . 3 Fabricators . | . . . . . . . . Repair Stations 4 | . 2 . . . 2 . . Recycling Units 5 | . . . . . 5 . . Scanalyzers 13 | . . . . . 4 . 9 Garrison Access 4 | . . . . . 4 . . Terminal Hacks 26 | . 6 . 3 . 16 . 1 Record 2 | . . . 2 . . . . Robot Analysis 5 | . 2 . . . 3 . . Prototype ID Bank 3 | . 1 . . . 2 . . Terminal Index 3 | . 1 . . . 1 . 1 Alert Level 2 | . . . . . 2 . . Unreport Threat 1 | . 1 . . . . . . Locate Traps 2 | . 1 . . . 1 . . Registered Components 6 | . . . . . 6 . . Zone Layout 1 | . . . . . 1 . . EX-Prototype ID Bank 1 | . . . 1 . . . . Fabricator Hacks . | . . . . . . . . Repair Station Hacks 4 | . 2 . . . 2 . . Scan Component 2 | . 1 . . . 1 . . Repair 2 | . 1 . . . 1 . . Recycling Unit Hacks 1 | . . . . . 1 . . Retrieve Components 1 | . . . . . 1 . . Scanalyzer 7 | . . . . . 1 . 6 Insert Component 5 | . . . . . 1 . 4 Analyze 2 | . . . . . . . 2 Garrison Access Hacks 1 | . . . . . 1 . . Unlock Access 1 | . . . . . 1 . . Unauthorized Hacks 16 | . 4 . . . 12 . . Terminals 12 | . 4 . . . 8 . . Track 3 | . . . . . 3 . . Assimilate 2 | . 1 . . . 1 . . Botnet 5 | . 1 . . . 4 . . Operators 2 | . 2 . . . . . . Fabricators . | . . . . . . . . Repair Stations . | . . . . . . . . Recycling Units 3 | . . . . . 3 . . Monitor 1 | . . . . . 1 . . Reject 1 | . . . . . 1 . . Recyclers 1 | . . . . . 1 . . Scanalyzers . | . . . . . . . . Garrison Access 1 | . . . . . 1 . . Reprogram 1 | . . . . . 1 . . Data Cores Recovered . | . . . . . . . . Used . | . . . . . . . . Hacking Detections 20 | . 7 . . . 11 . 2 Full Trace Events . | . . . . . . . . Feedback Events . | . . . . . . . . Feedback Blocked . | . . . . . . . . Robot Schematics Acquired . | . . . . . . . . Robots Built . | . . . . . . . . Authchips . | . . . . . . . . Time . | . . . . . . . . Total Robot Build Rating . | . . . . . . . . Part Schematics Acquired 2 | . . . . . . . 2 Parts Built . | . . . . . . . . Authchips . | . . . . . . . . Time . | . . . . . . . . Total Part Build Rating . | . . . . . . . . Parts Repaired 2 | . 1 . . . 1 . . Time 52 | . 26 . . . 26 . . Parts Recycled . | . . . . . . . . Recycled Matter . | . . . . . . . . Retrieved Matter . | . . . . . . . . Retrieved Components 10 | . . . . . 10 . . Parts Scanalyzed 4 | . . . . . 1 . 3 Part Schematics Acquired 2 | . . . . . . . 2 Parts Damaged 1 | . . . . . . . 1 Bothacking | -11 -10 -10 -10 -9 -8 -8 -8 ------------ Run | Scr Mat Min Exi Min Mat Gar Mat Used RIF Installer 1 | . . . . . . 1 . Robots Hacked 2 | . . . . . . . 2 Non-combat . | . . . . . . . . Combat 2 | . . . . . . . 2 Robot Hacks Applied 2 | . . . . . . . 2 find_garrison 1 | . . . . . . . 1 formatsys_high 1 | . . . . . . . 1 Relay Couplers Released 17 | . . . . . . 17 . Machine Destruction 17 | . . . . . . 17 . Attached 2 | . . . . . . 1 1 Fabnet Peak Effective % . | . . . . . . . . Robots Rewired . | . . . . . . . . Allies Hacked . | . . . . . . . . Hacks Repelled . | . . . . . . . . Allies | -11 -10 -10 -10 -9 -8 -8 -8 -------- Run | Scr Mat Min Exi Min Mat Gar Mat Total Allies 3 | . 1 . . . 1 . 1 Largest Group 1 | . 1 1 1 1 1 . 1 Highest-Rated Group 29 | . 10 9 9 9 10 . 29 Highest-Rated Ally 29 | . 10 9 9 9 10 . 29 Total Orders 14 | . 2 6 . . 4 . 2 STAY 8 | . 1 3 . . 3 . 1 FOLLOW 6 | . 1 3 . . 1 . 1 Ally Attacks 7 | . . . . . . . 7 Total Damage 115 | . . . . . . . 115 Kills 2 | . . . . . . . 2 Allies Corrupted . | . . . . . . . . Allies Melted . | . . . . . . . . Intel | -11 -10 -10 -10 -9 -8 -8 -8 ------- Run | Scr Mat Min Exi Min Mat Gar Mat Robot Analysis Total 5 | . 2 . . . 3 . . Derelict Logs Recovered 2 | . . 1 . 1 . . . Drone Launches . | . . . . . . . . Drone Recoveries . | . . . . . . . . Exploration | -11 -10 -10 -10 -9 -8 -8 -8 ------------- Run | Scr Mat Min Exi Min Mat Gar Mat Turns Passed 8266 | 92 1143 820 285 404 3021 1949 552 Spaces Moved 4922 | 58 831 564 234 329 1749 822 335 Core 13 | 13 . . . . . . . Treads . | . . . . . . . . Legs 227 | 45 182 . . . . . . Wheels 4682 | . 649 564 234 329 1749 822 335 Hover . | . . . . . . . . Flight . | . . . . . . . . Fastest Speed 50 | 50 95 110 120 120 120 135 135 Average Speed 126 | 112 105 128 120 120 128 144 135 Slowest Speed 230 | 150 140 155 120 120 160 230 135 Overloaded Moves . | . . . . . . . . Propulsion Burnouts . | . . . . . . . . Robots Hopped . | . . . . . . . . Cave-ins Triggered 2 | . . . . . 2 . . Exploration Rate (%) 61 | 3 96 98 60 49 72 95 19 Regions Visited 7 Branch Regions 3 Pre-discovered Areas 2 | . . . 1 1 . . . Known Exits Taken 1 | . . . . . 1 . . Unknown Exits Taken 5 | 1 1 1 1 1 . . . Scrap Searched 4 | . . 1 . 3 . . . Spaces Dug 39 | . 5 . . . 11 23 . Terrain Destroyed 42 | . 5 . . . 14 23 . Melee 34 | . . . . . 11 23 . Projectile 8 | . 5 . . . 3 . . AOE . | . . . . . . . . Terrain Rammed . | . . . . . . . . Walls Destroyed . | . . . . . . . . Machines Disabled . | . . . . . . . . Actions | -11 -10 -10 -10 -9 -8 -8 -8 --------- Run | Scr Mat Min Exi Min Mat Gar Mat Total 6317 | 75 980 621 238 339 2287 1382 395 Wait 712 | . 45 19 . 5 290 329 24 Move 4915 | 57 830 563 233 328 1748 821 335 Hop . | . . . . . . . . Pick Up 105 | 8 24 8 2 3 45 11 4 Fast Attach 21 | 7 1 . . . 11 1 1 Attach 26 | . 2 6 . . 16 1 1 Detach 3 | . . . . . 3 . . Swap 54 | . 9 2 1 . 22 17 3 Drop 71 | . 13 3 2 3 33 12 5 Fire 245 | 3 56 20 . . 86 58 22 Melee 85 | . . . . . 33 52 . Ram . | . . . . . . . . Kick . | . . . . . . . . Crush . | . . . . . . . . Escape Stasis 80 | . . . . . . 80 . Rewire . | . . . . . . . . Trap . | . . . . . . . . Miscellaneous . | . . . . . . . . Route ------- -11/Scrapyard -10/Materials (discovered 5 exits: [*Mat x3] / [*Min x2]) -10/Mines (discovered 3 exits: [*Mat x2] / *Exi) -10/Exiles -9/Mines -8/Materials (discovered 4 exits: [*Fac x3] / Gar) -8/Garrison (discovered 3 exits: *Mat x3) -8/Materials History --------- Turn | Location | Event 8 | -11/Scrapyard | Discovered new exit (range 15) 93 | -11/Scrapyard | Entered Materials 295 | -10/Materials | Discovered new exit (range 15) 312 | -10/Materials | Build established: Mutant 494 | -10/Materials | Discovered new exit (range 16) 802 | -10/Materials | Repaired Med. Laser 836 | -10/Materials | Discovered new exit (range 5) 1009 | -10/Materials | Discovered new exit (range 16) 1039 | -10/Materials | Discovered new exit (range 10) 1236 | -10/Materials | Entered Mines 1236 | -10/Mines | Accompanied by 1 ally 1238 | -10/Mines | Core integrity fell below 50% 1312 | -10/Mines | Discovered new exit (range 6) 1317 | -10/Mines | Learned Materials security intel 1364 | -10/Mines | Core integrity fell below 20% 1405 | -10/Mines | Lost 4 parts (2n1u1w) 1458 | -10/Mines | Deemed a non-threat by the Exiles lab entrance 1459 | -10/Mines | Discovered new exit (range 5) 1760 | -10/Mines | Discovered new exit (range 7) 1918 | -10/Mines | Joined a pair of Derelicts in attacking an 0b10 outpost 2056 | -10/Mines | Entered Exiles 2056 | -10/Exiles | Accompanied by 1 ally 2085 | -10/Exiles | Met 8R-AWN 2107 | -10/Exiles | Met EX-HEX 2140 | -10/Exiles | Met EX-BIN 2156 | -10/Exiles | Aligned with FarCom system 2157 | -10/Exiles | Given EX-Vault access code 2185 | -10/Exiles | Opened EX-Vault 2195 | -10/Exiles | Found Trap Reconfigurator 2221 | -10/Exiles | Warned to stay clear of 0b10 Research branches 2255 | -10/Exiles | Met EX-DEC 2260 | -10/Exiles | Learned location of Zion (-7) 2330 | -10/Exiles | Discovered new exit (range 11) 2341 | -10/Exiles | Left Exiles lab with Trap Reconfigurator 2341 | -10/Exiles | Entered Mines 2341 | -9/Mines | Accompanied by 1 ally 2379 | -9/Mines | Received a Rocket Launcher from a helpful Derelict 2597 | -9/Mines | Discovered new exit (range 6) 2745 | -9/Mines | Entered Materials 2745 | -8/Materials | Accompanied by 1 ally 2745 | -8/Materials | Evolved 4 slots: Utility x4 3290 | -8/Materials | Discovered new exit (range 15) 3510 | -8/Materials | Build established: Scavenger-Mutant 3621 | -8/Materials | Central database locked down 3832 | -8/Materials | Identified exit to Garrison 3859 | -8/Materials | Discovered new exit (range 11) 3912 | -8/Materials | Build established: Hacker-Mutant 4095 | -8/Materials | Crushed by falling debris 4161 | -8/Materials | Lost 5 parts (1n3u1w) 4227 | -8/Materials | Crushed by falling debris 4227 | -8/Materials | System corruption reached 10% 4356 | -8/Materials | Core integrity fell below 50% 4642 | -8/Materials | Discovered new exit (range 9) 4808 | -8/Materials | Build established: Mutant 5318 | -8/Materials | Repaired Com. Wheel 5766 | -8/Materials | Entered Garrison 5986 | -8/Garrison | Triggered checkpoint 6028 | -8/Garrison | Garrison Relay disabled 6144 | -8/Garrison | Triggered checkpoint 6511 | -8/Garrison | Discovered new exit (range 15) 6568 | -8/Garrison | Triggered checkpoint 6616 | -8/Garrison | Garrison Relay disabled 6794 | -8/Garrison | Core integrity fell below 20% 6898 | -8/Garrison | Discovered new exit (range 9) 6922 | -8/Garrison | Triggered checkpoint 6959 | -8/Garrison | Garrison Relay disabled 7104 | -8/Garrison | Triggered checkpoint 7213 | -8/Garrison | Discovered new exit (range 10) 7257 | -8/Garrison | Installed Relay Interface Framework 7294 | -8/Garrison | Triggered checkpoint 7388 | -8/Garrison | Garrison Relay disabled 7554 | -8/Garrison | Build established: Bothacker-Mutant 7715 | -8/Garrison | Entered Materials 8267 | -8/Materials | Self-destructed Last Messages --------------- 08152_ System corrupted: Component data lost. 08170_ KJBYEEH P&=5UBDL XKZRCF=RAIXX 08178_ Jacked G-50 Soldier... >>formatsys_high Rerouting network defenses. Erasing system data. Installing primary routines, ETC: 6. 08184_ Soldier 3a reactivates. 08189_ Jacked G-47 Trooper... >>find_garrison Pinpointed nearest Garrison Access: (59,43) (added to intel). 08192_ G-47 Trooper destroyed. 08195_ Acquired 45 matter. 08219_ R-06 Scavenger collects Imp. Heat Sink. 08224_ GR0LB0BEN E1